[Event "*** Titled Tuesday Blitz"]
[Site "Chess.com"]
[Date "2020.05.12"]
[Round "5"]
[White "SerGo055"]
[Black "northridgehawk"]
[Result "1-0"]
[WhiteElo "2556"]
[BlackElo "2260"]
[TimeControl "180+1"]
[EndTime "10:54:42 PDT"]
[Termination "SerGo055 won on time"]

1. d4 {[%clk 0:03:00.9]} 1... Nf6 {[%clk 0:02:59.1]} 2. Nf3 {[%clk 0:03:00.6]}
2... g6 {[%clk 0:02:58.9]} 3. c4 {[%clk 0:02:54]} 3... Bg7 {[%clk 0:02:58.4]} 4.
Nc3 {[%clk 0:02:54.5]} 4... d5 {[%clk 0:02:58.8]} 5. e3 {[%clk 0:02:51.3]} 5...
O-O {[%clk 0:02:56.7]} 6. Qb3 {[%clk 0:02:50.8]} 6... c5 {[%clk 0:02:28.6]} 7.
cxd5 {[%clk 0:02:46]} 7... cxd4 {[%clk 0:02:24.7]} 8. Nxd4 {[%clk 0:02:46.9]}
8... Nbd7 {[%clk 0:02:12.7]} 9. Bc4 {[%clk 0:02:42.6]} 9... Nb6 {[%clk
0:02:11.6]} 10. O-O {[%clk 0:02:41.5]} 10... Nxc4 {[%clk 0:02:06.7]} 11. Qxc4
{[%clk 0:02:40.9]} 11... Bd7 {[%clk 0:02:06.7]} 12. Rd1 {[%clk 0:02:38.8]} 12...
Qb6 {[%clk 0:02:03.7]} 13. Qb3 {[%clk 0:02:38.2]} 13... Qa6 {[%clk 0:01:59.3]}
14. e4 {[%clk 0:02:33.4]} 14... Nxe4 {[%clk 0:01:07.4]} 15. Nxe4 {[%clk
0:02:31.9]} 15... Ba4 {[%clk 0:01:06.6]} 16. Qd3 {[%clk 0:02:29.5]} 16... Bxd1
{[%clk 0:01:06.3]} 17. Qxd1 {[%clk 0:02:29.5]} 17... Qc4 {[%clk 0:01:06.2]} 18.
Be3 {[%clk 0:02:27.2]} 18... Qxd5 {[%clk 0:01:05.2]} 19. Nc3 {[%clk 0:02:26.9]}
19... Qa5 {[%clk 0:01:01.4]} 20. Nb3 {[%clk 0:02:26.5]} 20... Qf5 {[%clk
0:00:52.1]} 21. Qf3 {[%clk 0:02:04.1]} 21... Qxf3 {[%clk 0:00:50.7]} 22. gxf3
{[%clk 0:02:03.7]} 22... Rfd8 {[%clk 0:00:51]} 23. Kf1 {[%clk 0:01:58.2]} 23...
a6 {[%clk 0:00:50.6]} 24. Ke2 {[%clk 0:01:57.9]} 24... b5 {[%clk 0:00:50.3]} 25.
Rd1 {[%clk 0:01:53.3]} 25... Rxd1 {[%clk 0:00:45]} 26. Nxd1 {[%clk 0:01:52.9]}
26... Rd8 {[%clk 0:00:42.6]} 27. Nc5 {[%clk 0:01:52.2]} 27... a5 {[%clk
0:00:28.4]} 28. Nc3 {[%clk 0:01:52.1]} 28... b4 {[%clk 0:00:25.5]} 29. N3a4
{[%clk 0:01:51.9]} 29... Rc8 {[%clk 0:00:15.9]} 30. b3 {[%clk 0:01:50.2]} 30...
e5 {[%clk 0:00:15.6]} 31. Kd3 {[%clk 0:01:47.1]} 31... f5 {[%clk 0:00:15.3]} 32.
f4 {[%clk 0:01:44.6]} 32... exf4 {[%clk 0:00:14.8]} 33. Bxf4 {[%clk 0:01:45.3]}
33... Rd8+ {[%clk 0:00:14.1]} 34. Kc4 {[%clk 0:01:44.4]} 34... Rd1 {[%clk
0:00:13.7]} 35. Kb5 {[%clk 0:01:43.1]} 35... Ra1 {[%clk 0:00:14.1]} 36. Kxa5
{[%clk 0:01:42.1]} 36... Rxa2 {[%clk 0:00:14.4]} 37. Be3 {[%clk 0:01:39.2]}
37... f4 {[%clk 0:00:13.2]} 38. Bxf4 {[%clk 0:01:39.4]} 38... Rxf2 {[%clk
0:00:13.7]} 39. Bg3 {[%clk 0:01:39.9]} 39... Rf5 {[%clk 0:00:11.6]} 40. Kxb4
{[%clk 0:01:40.2]} 40... Bf8 {[%clk 0:00:11.6]} 41. Kc4 {[%clk 0:01:40.4]} 41...
h5 {[%clk 0:00:11.7]} 42. b4 {[%clk 0:01:40.1]} 42... g5 {[%clk 0:00:11.9]} 43.
b5 {[%clk 0:01:40.6]} 43... h4 {[%clk 0:00:12.2]} 44. Bc7 {[%clk 0:01:40.5]}
44... Rf2 {[%clk 0:00:08.2]} 45. b6 {[%clk 0:01:40.5]} 45... Rf1 {[%clk
0:00:08]} 46. b7 {[%clk 0:01:39.3]} 46... Rb1 {[%clk 0:00:08.2]} 47. Nb3 {[%clk
0:01:37.8]} 47... Ra1 {[%clk 0:00:01.6]} 48. Nxa1 {[%clk 0:01:37.3]} 1-0

[Event "*** Titled Tuesday Blitz"]
[Site "Chess.com"]
[Date "2020.05.12"]
[Round "5"]
[White "Indianlad"]
[Black "tacticthunder"]
[Result "1-0"]
[WhiteElo "2931"]
[BlackElo "2618"]
[TimeControl "180+1"]
[EndTime "10:54:43 PDT"]
[Termination "Indianlad won by resignation"]

1. Nf3 {[%clk 0:03:00.9]} 1... Nf6 {[%clk 0:02:58.3]} 2. c4 {[%clk 0:03:01.1]}
2... e6 {[%clk 0:02:58.3]} 3. Nc3 {[%clk 0:02:59.8]} 3... Bb4 {[%clk 0:02:57.7]}
4. Qc2 {[%clk 0:02:58.4]} 4... O-O {[%clk 0:02:56.8]} 5. g4 {[%clk 0:02:57.2]}
5... Bxc3 {[%clk 0:02:40.4]} 6. dxc3 {[%clk 0:02:53.2]} 6... d5 {[%clk
0:02:40.5]} 7. g5 {[%clk 0:02:52.7]} 7... Ne4 {[%clk 0:02:40.3]} 8. h4 {[%clk
0:02:47.7]} 8... Nd6 {[%clk 0:02:24]} 9. h5 {[%clk 0:02:39.1]} 9... e5 {[%clk
0:02:07]} 10. cxd5 {[%clk 0:02:35.6]} 10... Bf5 {[%clk 0:02:05.4]} 11. Qd1
{[%clk 0:02:31.3]} 11... Nd7 {[%clk 0:02:05.1]} 12. Nh4 {[%clk 0:02:29.5]} 12...
Nb6 {[%clk 0:01:27.3]} 13. Nxf5 {[%clk 0:02:24.9]} 13... Nxf5 {[%clk 0:01:28.2]}
14. e4 {[%clk 0:02:23.1]} 14... Nd6 {[%clk 0:01:27.3]} 15. Bd3 {[%clk
0:02:23.1]} 15... f5 {[%clk 0:01:19.5]} 16. gxf6 {[%clk 0:02:23.3]} 16... Qxf6
{[%clk 0:01:18.9]} 17. Qe2 {[%clk 0:02:23.9]} 17... c6 {[%clk 0:01:00.3]} 18.
dxc6 {[%clk 0:02:23.8]} 18... bxc6 {[%clk 0:01:01.2]} 19. Rg1 {[%clk 0:02:24.3]}
19... c5 {[%clk 0:00:54.3]} 20. Bg5 {[%clk 0:02:23.5]} 20... Qe6 {[%clk
0:00:53.4]} 21. O-O-O {[%clk 0:01:46.8]} 21... Qxa2 {[%clk 0:00:32.3]} 22. Bb1
{[%clk 0:01:47.4]} 22... Qe6 {[%clk 0:00:28.6]} 23. Qg4 {[%clk 0:01:47.9]} 23...
Qxg4 {[%clk 0:00:25.2]} 24. Rxg4 {[%clk 0:01:48.8]} 24... Nf7 {[%clk 0:00:22.6]}
25. Bf6 {[%clk 0:01:32.7]} 25... Rfe8 {[%clk 0:00:11]} 26. Rxg7+ {[%clk
0:01:32.1]} 26... Kf8 {[%clk 0:00:11.9]} 27. Ba2 {[%clk 0:01:23.9]} 27... c4
{[%clk 0:00:11.8]} 28. Rdg1 {[%clk 0:01:19.2]} 28... Nh6 {[%clk 0:00:08.1]} 29.
Rxh7 {[%clk 0:01:19.6]} 29... Ng8 {[%clk 0:00:08.6]} 30. Bg7+ {[%clk 0:00:59.5]}
30... Kf7 {[%clk 0:00:08.3]} 31. Bxe5+ {[%clk 0:01:00.4]} 31... Ke6 {[%clk
0:00:08.1]} 32. f4 {[%clk 0:00:59.8]} 1-0

[Event "*** Titled Tuesday Blitz"]
[Site "Chess.com"]
[Date "2020.05.12"]
[Round "5"]
[White "cukus"]
[Black "ASVZ"]
[Result "1-0"]
[WhiteElo "2511"]
[BlackElo "2350"]
[TimeControl "180+1"]
[EndTime "10:54:43 PDT"]
[Termination "cukus won by checkmate"]

1. e4 {[%clk 0:03:00.9]} 1... e6 {[%clk 0:03:00.2]} 2. d4 {[%clk 0:02:57.4]}
2... d5 {[%clk 0:03:00.3]} 3. Nc3 {[%clk 0:02:57.8]} 3... Bb4 {[%clk 0:02:59.8]}
4. e5 {[%clk 0:02:57.7]} 4... c5 {[%clk 0:03:00]} 5. a3 {[%clk 0:02:58.3]} 5...
Ba5 {[%clk 0:03:00.4]} 6. b4 {[%clk 0:02:58]} 6... cxd4 {[%clk 0:03:00.8]} 7.
bxa5 {[%clk 0:02:58.4]} 7... dxc3 {[%clk 0:03:00.8]} 8. Qg4 {[%clk 0:02:59.1]}
8... Ne7 {[%clk 0:03:01.2]} 9. Nf3 {[%clk 0:02:58.1]} 9... Ng6 {[%clk 0:02:54]}
10. Bd3 {[%clk 0:02:58]} 10... Nc6 {[%clk 0:02:54.1]} 11. Qg3 {[%clk 0:02:57.4]}
11... Qc7 {[%clk 0:02:52.6]} 12. O-O {[%clk 0:02:56.6]} 12... Bd7 {[%clk
0:02:45.4]} 13. a6 {[%clk 0:02:54]} 13... b6 {[%clk 0:02:45.7]} 14. a4 {[%clk
0:02:53.4]} 14... O-O-O {[%clk 0:02:43.3]} 15. Re1 {[%clk 0:02:50.1]} 15... f6
{[%clk 0:02:30]} 16. a5 {[%clk 0:02:10.6]} 16... bxa5 {[%clk 0:01:58.3]} 17. Rb1
{[%clk 0:02:01.2]} 17... Nb4 {[%clk 0:01:47.3]} 18. Ba3 {[%clk 0:01:59.5]} 18...
Nxd3 {[%clk 0:01:30.5]} 19. Bd6 {[%clk 0:01:25.1]} 19... Nxe1 {[%clk 0:01:14.7]}
20. Bxc7 {[%clk 0:01:22.8]} 20... Nxf3+ {[%clk 0:01:14.9]} 21. Qxf3 {[%clk
0:01:21.3]} 21... Bc6 {[%clk 0:00:59.2]} 22. Bxd8 {[%clk 0:01:13.2]} 22... Rxd8
{[%clk 0:00:57.3]} 23. Qxc3 {[%clk 0:01:09]} 23... Nxe5 {[%clk 0:00:57.2]} 24.
f4 {[%clk 0:01:02.1]} 24... Nc4 {[%clk 0:00:56.7]} 25. Qd4 {[%clk 0:00:57.4]}
25... Rd7 {[%clk 0:00:51.8]} 26. Qc5 {[%clk 0:00:53.3]} 26... Rc7 {[%clk
0:00:51.6]} 27. Qf8+ {[%clk 0:00:52.7]} 27... Kd7 {[%clk 0:00:52]} 28. Qxg7+
{[%clk 0:00:49.8]} 28... Kd6 {[%clk 0:00:52.4]} 29. Qf8+ {[%clk 0:00:46]} 29...
Kd7 {[%clk 0:00:51.1]} 30. Rb8 {[%clk 0:00:38.6]} 30... Nd6 {[%clk 0:00:20.3]}
31. Qd8# {[%clk 0:00:36.3]} 1-0

[Event "*** Titled Tuesday Blitz"]
[Site "Chess.com"]
[Date "2020.05.12"]
[Round "5"]
[White "kismet6"]
[Black "czasnaszachy"]
[Result "0-1"]
[WhiteElo "1929"]
[BlackElo "2355"]
[TimeControl "180+1"]
[EndTime "10:54:44 PDT"]
[Termination "czasnaszachy won by resignation"]

1. e4 {[%clk 0:03:00.1]} 1... c5 {[%clk 0:02:40.3]} 2. Nf3 {[%clk 0:02:58.5]}
2... e6 {[%clk 0:02:37.9]} 3. c3 {[%clk 0:02:53.6]} 3... Nf6 {[%clk 0:02:36.2]}
4. Bd3 {[%clk 0:02:51.3]} 4... Nc6 {[%clk 0:02:17.5]} 5. Qe2 {[%clk 0:02:40.6]}
5... d5 {[%clk 0:02:12]} 6. e5 {[%clk 0:02:36.5]} 6... Nd7 {[%clk 0:02:11.7]} 7.
Bb5 {[%clk 0:02:35.3]} 7... Qc7 {[%clk 0:02:05.1]} 8. O-O {[%clk 0:02:29.6]}
8... a6 {[%clk 0:01:57.5]} 9. Bxc6 {[%clk 0:02:27.8]} 9... bxc6 {[%clk
0:01:56.9]} 10. d4 {[%clk 0:02:27.8]} 10... cxd4 {[%clk 0:01:56.4]} 11. cxd4
{[%clk 0:02:27.5]} 11... Be7 {[%clk 0:01:51.7]} 12. Bf4 {[%clk 0:02:26.5]} 12...
O-O {[%clk 0:01:44.2]} 13. Nc3 {[%clk 0:02:25.1]} 13... a5 {[%clk 0:01:40]} 14.
Rac1 {[%clk 0:02:23.8]} 14... Ba6 {[%clk 0:01:38.7]} 15. Qd2 {[%clk 0:02:18]}
15... Bxf1 {[%clk 0:01:37.5]} 16. Kxf1 {[%clk 0:02:15.9]} 16... c5 {[%clk
0:01:34]} 17. Nxd5 {[%clk 0:01:57.4]} 17... exd5 {[%clk 0:01:22.6]} 18. e6
{[%clk 0:01:57.1]} 18... Bd6 {[%clk 0:01:13.6]} 19. Bxd6 {[%clk 0:01:53.3]}
19... Qxd6 {[%clk 0:01:13.6]} 20. exd7 {[%clk 0:01:53.2]} 20... c4 {[%clk
0:01:10.5]} 21. Rc3 {[%clk 0:01:11.1]} 21... Qxd7 {[%clk 0:01:06.3]} 22. Ne5
{[%clk 0:01:09.8]} 22... Qf5 {[%clk 0:01:00.2]} 23. Nc6 {[%clk 0:01:04.5]} 23...
Rfe8 {[%clk 0:00:55.9]} 24. Re3 {[%clk 0:01:02.4]} 24... Qb1+ {[%clk 0:00:36.6]}
25. Ke2 {[%clk 0:00:57.9]} 25... Rxe3+ {[%clk 0:00:35.1]} 26. fxe3 {[%clk
0:00:57.3]} 26... Qg1 {[%clk 0:00:34.6]} 27. Kf3 {[%clk 0:00:49.8]} 27... Qxh2
{[%clk 0:00:32.4]} 28. Ne7+ {[%clk 0:00:48.2]} 28... Kh8 {[%clk 0:00:32.2]} 29.
Nxd5 {[%clk 0:00:44.3]} 29... Qh5+ {[%clk 0:00:31.6]} 30. Ke4 {[%clk 0:00:42.8]}
30... Re8+ {[%clk 0:00:30.6]} 0-1

[Event "*** Titled Tuesday Blitz"]
[Site "Chess.com"]
[Date "2020.05.12"]
[Round "5"]
[White "nicolochessit"]
[Black "ThePatrick27"]
[Result "0-1"]
[WhiteElo "2377"]
[BlackElo "2533"]
[TimeControl "180+1"]
[EndTime "10:54:46 PDT"]
[Termination "ThePatrick27 won by resignation"]

1. d4 {[%clk 0:03:00.9]} 1... Nf6 {[%clk 0:02:59.5]} 2. Nf3 {[%clk 0:03:01.1]}
2... e6 {[%clk 0:02:57.8]} 3. Bg5 {[%clk 0:03:00.3]} 3... d5 {[%clk 0:02:57.3]}
4. Nbd2 {[%clk 0:02:59.4]} 4... Be7 {[%clk 0:02:56.9]} 5. Bxf6 {[%clk
0:02:58.4]} 5... Bxf6 {[%clk 0:02:56.7]} 6. e4 {[%clk 0:02:59.3]} 6... dxe4
{[%clk 0:02:56.7]} 7. Nxe4 {[%clk 0:03:00.2]} 7... Be7 {[%clk 0:02:57.2]} 8. Bd3
{[%clk 0:02:59.9]} 8... O-O {[%clk 0:02:56.1]} 9. Qe2 {[%clk 0:02:59.7]} 9...
Nd7 {[%clk 0:02:55.4]} 10. h4 {[%clk 0:02:59.5]} 10... c5 {[%clk 0:02:35.4]} 11.
O-O-O {[%clk 0:02:50.7]} 11... Qa5 {[%clk 0:02:29.8]} 12. Kb1 {[%clk 0:02:40]}
12... cxd4 {[%clk 0:02:23.2]} 13. Nxd4 {[%clk 0:02:40.9]} 13... Ne5 {[%clk
0:02:02.5]} 14. Ng5 {[%clk 0:02:32.8]} 14... Nxd3 {[%clk 0:02:01.2]} 15. Qxd3
{[%clk 0:02:33.7]} 15... g6 {[%clk 0:01:57.9]} 16. f4 {[%clk 0:02:30.4]} 16...
e5 {[%clk 0:01:46]} 17. Nb3 {[%clk 0:02:22.9]} 17... Qc7 {[%clk 0:01:43.7]} 18.
g3 {[%clk 0:01:35.1]} 18... Bf5 {[%clk 0:01:42.4]} 19. Qe2 {[%clk 0:01:34.8]}
19... Rac8 {[%clk 0:01:38.9]} 20. Rh2 {[%clk 0:01:25.6]} 20... exf4 {[%clk
0:01:37.9]} 21. gxf4 {[%clk 0:01:25.1]} 21... Qxf4 {[%clk 0:01:32.9]} 22. Rf2
{[%clk 0:01:10.1]} 22... Rxc2 {[%clk 0:01:24.7]} 23. Rxf4 {[%clk 0:00:54.1]}
23... Rxe2+ {[%clk 0:01:24]} 24. Ka1 {[%clk 0:00:55]} 24... Bf6 {[%clk
0:01:07.4]} 25. Nd4 {[%clk 0:00:45.6]} 25... Rd8 {[%clk 0:00:56.6]} 26. a3
{[%clk 0:00:40.1]} 26... Rxd4 {[%clk 0:00:51.1]} 27. Rfxd4 {[%clk 0:00:41]}
27... Bxd4 {[%clk 0:00:51.2]} 28. Rxd4 {[%clk 0:00:41.1]} 28... h6 {[%clk
0:00:51.1]} 29. Nf3 {[%clk 0:00:34.5]} 29... Be6 {[%clk 0:00:46]} 30. b4 {[%clk
0:00:31.9]} 30... Ra2+ {[%clk 0:00:44.8]} 31. Kb1 {[%clk 0:00:31.3]} 31... Rxa3
{[%clk 0:00:45.7]} 32. Nd2 {[%clk 0:00:28.8]} 32... Kg7 {[%clk 0:00:43.4]} 33.
Kb2 {[%clk 0:00:27.6]} 33... Rh3 {[%clk 0:00:40.1]} 0-1

[Event "*** Titled Tuesday Blitz"]
[Site "Chess.com"]
[Date "2020.05.12"]
[Round "5"]
[White "Hanging_pointer"]
[Black "Matalon"]
[Result "1-0"]
[WhiteElo "2592"]
[BlackElo "2352"]
[TimeControl "180+1"]
[EndTime "10:54:47 PDT"]
[Termination "Hanging_pointer won by resignation"]

1. d4 {[%clk 0:03:00.9]} 1... Nf6 {[%clk 0:02:59.4]} 2. Bf4 {[%clk 0:02:58.3]}
2... g6 {[%clk 0:02:59.2]} 3. e3 {[%clk 0:02:57.6]} 3... Bg7 {[%clk 0:02:59.7]}
4. Nf3 {[%clk 0:02:56.6]} 4... d6 {[%clk 0:03:00.1]} 5. c3 {[%clk 0:02:56.2]}
5... O-O {[%clk 0:03:00]} 6. h3 {[%clk 0:02:56.4]} 6... Ne4 {[%clk 0:02:59.7]}
7. Nbd2 {[%clk 0:02:53.3]} 7... Nxd2 {[%clk 0:02:59.5]} 8. Qxd2 {[%clk
0:02:54.2]} 8... Nd7 {[%clk 0:02:59.2]} 9. Be2 {[%clk 0:02:50.4]} 9... e5 {[%clk
0:02:59]} 10. dxe5 {[%clk 0:02:50]} 10... dxe5 {[%clk 0:02:57.1]} 11. Bh2 {[%clk
0:02:49.3]} 11... Qe7 {[%clk 0:02:57.6]} 12. O-O {[%clk 0:02:47]} 12... e4
{[%clk 0:02:54.1]} 13. Nd4 {[%clk 0:02:44.9]} 13... Ne5 {[%clk 0:02:54.6]} 14.
Rad1 {[%clk 0:02:41.9]} 14... c5 {[%clk 0:02:22.6]} 15. Nb5 {[%clk 0:02:40.5]}
15... a6 {[%clk 0:02:22.7]} 16. Qd6 {[%clk 0:02:38.4]} 16... Qxd6 {[%clk
0:02:14.8]} 17. Nxd6 {[%clk 0:02:39.3]} 17... b6 {[%clk 0:01:34.3]} 18. Nxe4
{[%clk 0:02:33.1]} 18... Be6 {[%clk 0:01:24.7]} 19. b3 {[%clk 0:02:12.9]} 19...
c4 {[%clk 0:01:23]} 20. b4 {[%clk 0:02:10.3]} 20... a5 {[%clk 0:01:15.6]} 21. a3
{[%clk 0:01:49.1]} 21... axb4 {[%clk 0:01:08.9]} 22. axb4 {[%clk 0:01:50]} 22...
Ra3 {[%clk 0:01:04.6]} 23. f4 {[%clk 0:01:38.3]} 23... Nd3 {[%clk 0:01:00.3]}
24. Bf3 {[%clk 0:01:09.2]} 24... Bxc3 {[%clk 0:00:55.3]} 25. Nxc3 {[%clk
0:01:07]} 25... Rxc3 {[%clk 0:00:54.1]} 26. e4 {[%clk 0:01:00.6]} 26... f5
{[%clk 0:00:45.4]} 27. exf5 {[%clk 0:00:58.7]} 27... gxf5 {[%clk 0:00:42.4]} 28.
Bg3 {[%clk 0:00:55.2]} 28... Rc2 {[%clk 0:00:26.1]} 29. Bf2 {[%clk 0:00:49.7]}
29... Nxf2 {[%clk 0:00:22.8]} 30. Rxf2 {[%clk 0:00:50.6]} 30... Rxf2 {[%clk
0:00:22.2]} 31. Kxf2 {[%clk 0:00:51.5]} 31... b5 {[%clk 0:00:21.3]} 32. Rd6
{[%clk 0:00:49.3]} 32... Kf7 {[%clk 0:00:21.1]} 33. Bd5 {[%clk 0:00:45.7]} 33...
Rh8 {[%clk 0:00:20.4]} 34. Rxe6 {[%clk 0:00:43.2]} 1-0

[Event "*** Titled Tuesday Blitz"]
[Site "Chess.com"]
[Date "2020.05.12"]
[Round "5"]
[White "LikeWater"]
[Black "Fandorine"]
[Result "0-1"]
[WhiteElo "2694"]
[BlackElo "2867"]
[TimeControl "180+1"]
[EndTime "10:54:49 PDT"]
[Termination "Fandorine won on time"]

1. e4 {[%clk 0:03:00.9]} 1... e5 {[%clk 0:02:59.1]} 2. Nf3 {[%clk 0:02:59.6]}
2... Nc6 {[%clk 0:02:59.2]} 3. d4 {[%clk 0:03:00.3]} 3... exd4 {[%clk
0:02:58.5]} 4. Bc4 {[%clk 0:03:01]} 4... Nf6 {[%clk 0:02:56.6]} 5. O-O {[%clk
0:03:01.3]} 5... d6 {[%clk 0:02:53.2]} 6. Nxd4 {[%clk 0:02:56.7]} 6... Be7
{[%clk 0:02:49.4]} 7. Nc3 {[%clk 0:02:53.7]} 7... O-O {[%clk 0:02:48.2]} 8. a3
{[%clk 0:02:53.9]} 8... Re8 {[%clk 0:02:39.1]} 9. Re1 {[%clk 0:02:45.6]} 9...
Bf8 {[%clk 0:02:38.2]} 10. h3 {[%clk 0:02:40.9]} 10... Ne5 {[%clk 0:02:35.9]}
11. Ba2 {[%clk 0:02:38]} 11... c6 {[%clk 0:02:35.8]} 12. Bf4 {[%clk 0:02:18.1]}
12... Bd7 {[%clk 0:02:22.4]} 13. Nf3 {[%clk 0:01:39.2]} 13... h6 {[%clk
0:02:15.4]} 14. Qe2 {[%clk 0:01:33.5]} 14... Ng6 {[%clk 0:01:46.4]} 15. Qd2
{[%clk 0:01:09.6]} 15... Nxf4 {[%clk 0:01:34.9]} 16. Qxf4 {[%clk 0:01:10.5]}
16... Be6 {[%clk 0:01:32.8]} 17. Bxe6 {[%clk 0:00:58.4]} 17... fxe6 {[%clk
0:01:29]} 18. e5 {[%clk 0:00:56.3]} 18... Nd5 {[%clk 0:01:28.9]} 19. Nxd5 {[%clk
0:00:36]} 19... dxe5 {[%clk 0:01:09.3]} 20. Nxe5 {[%clk 0:00:35.9]} 20... exd5
{[%clk 0:00:59.1]} 21. Qf7+ {[%clk 0:00:36]} 21... Kh7 {[%clk 0:00:54.6]} 22.
Qf5+ {[%clk 0:00:36.1]} 22... Kg8 {[%clk 0:00:54.8]} 23. Qf7+ {[%clk 0:00:36.4]}
23... Kh7 {[%clk 0:00:55.1]} 24. Qxb7 {[%clk 0:00:36.9]} 24... Qf6 {[%clk
0:00:49.2]} 25. Qxc6 {[%clk 0:00:28.3]} 25... Bd6 {[%clk 0:00:49.2]} 26. f4
{[%clk 0:00:13]} 26... Bxe5 {[%clk 0:00:49.3]} 27. Qxd5 {[%clk 0:00:06.3]} 27...
Qxf4 {[%clk 0:00:42.2]} 0-1

[Event "*** Titled Tuesday Blitz"]
[Site "Chess.com"]
[Date "2020.05.12"]
[Round "5"]
[White "LazovT"]
[Black "RestartingChess"]
[Result "1-0"]
[WhiteElo "2687"]
[BlackElo "2523"]
[TimeControl "180+1"]
[EndTime "10:54:51 PDT"]
[Termination "LazovT won by resignation"]

1. e4 {[%clk 0:02:56.4]} 1... d5 {[%clk 0:03:00.6]} 2. exd5 {[%clk 0:02:55.1]}
2... Qxd5 {[%clk 0:03:01.5]} 3. Nc3 {[%clk 0:02:55.2]} 3... Qd6 {[%clk
0:03:02.3]} 4. d4 {[%clk 0:02:55.4]} 4... Nf6 {[%clk 0:03:03]} 5. Nf3 {[%clk
0:02:55.6]} 5... Nc6 {[%clk 0:03:03.1]} 6. h3 {[%clk 0:02:49.1]} 6... a6 {[%clk
0:03:03]} 7. Bc4 {[%clk 0:02:48.5]} 7... Bf5 {[%clk 0:03:02.8]} 8. O-O {[%clk
0:02:47.6]} 8... e6 {[%clk 0:03:03.3]} 9. Be3 {[%clk 0:02:38.7]} 9... Be7 {[%clk
0:03:03.6]} 10. Qe2 {[%clk 0:02:37.3]} 10... O-O {[%clk 0:03:03.7]} 11. Rad1
{[%clk 0:02:37.1]} 11... Rad8 {[%clk 0:02:58.1]} 12. Rfe1 {[%clk 0:02:35.8]}
12... Qb4 {[%clk 0:02:58.3]} 13. Bb3 {[%clk 0:02:35.2]} 13... Nd5 {[%clk
0:02:46.9]} 14. Nxd5 {[%clk 0:02:32.8]} 14... exd5 {[%clk 0:02:47]} 15. Bf4
{[%clk 0:02:30.4]} 15... Bd6 {[%clk 0:02:37.8]} 16. c3 {[%clk 0:02:29.3]} 16...
Qa5 {[%clk 0:02:31.4]} 17. Bxd6 {[%clk 0:02:29.4]} 17... Rxd6 {[%clk 0:02:31.6]}
18. Ne5 {[%clk 0:02:26.4]} 18... Nxe5 {[%clk 0:01:56.6]} 19. Qxe5 {[%clk
0:02:27.3]} 19... Bg6 {[%clk 0:01:49.5]} 20. Re3 {[%clk 0:02:25.9]} 20... h6
{[%clk 0:01:46]} 21. Rde1 {[%clk 0:02:25.5]} 21... Rfd8 {[%clk 0:01:43.7]} 22.
h4 {[%clk 0:02:14.2]} 22... Re6 {[%clk 0:01:37.5]} 23. Qg3 {[%clk 0:02:13]}
23... Rxe3 {[%clk 0:01:36.4]} 24. Rxe3 {[%clk 0:02:13.9]} 24... Qb6 {[%clk
0:01:34.3]} 25. Re7 {[%clk 0:02:11.2]} 25... c6 {[%clk 0:01:19]} 26. Qc7 {[%clk
0:02:10]} 26... Qxc7 {[%clk 0:01:17.2]} 27. Rxc7 {[%clk 0:02:10.9]} 27... Rb8
{[%clk 0:01:17.6]} 28. Bd1 {[%clk 0:02:11.4]} 28... Bf5 {[%clk 0:01:14.9]} 29.
g4 {[%clk 0:02:09.6]} 29... Be6 {[%clk 0:01:15.4]} 30. f4 {[%clk 0:02:08.2]}
30... g6 {[%clk 0:01:10.3]} 31. Kf2 {[%clk 0:02:05.8]} 31... Kf8 {[%clk
0:01:10.4]} 32. h5 {[%clk 0:02:04.8]} 32... gxh5 {[%clk 0:01:07.2]} 33. f5
{[%clk 0:02:05.1]} 33... Bc8 {[%clk 0:01:07.3]} 34. Kg3 {[%clk 0:02:03.4]} 34...
hxg4 {[%clk 0:01:06.7]} 35. Bxg4 {[%clk 0:02:04.3]} 35... Ke8 {[%clk 0:00:52.3]}
36. Kf4 {[%clk 0:02:04.1]} 36... Bd7 {[%clk 0:00:52.7]} 37. f6 {[%clk
0:02:00.7]} 37... Bxg4 {[%clk 0:00:43.7]} 38. Kxg4 {[%clk 0:02:01.6]} 38... Kf8
{[%clk 0:00:40.7]} 39. Kh5 {[%clk 0:01:59.5]} 39... Kg8 {[%clk 0:00:40.4]} 40.
Kxh6 {[%clk 0:01:59.7]} 40... a5 {[%clk 0:00:38.3]} 41. Kg5 {[%clk 0:01:56.1]}
41... a4 {[%clk 0:00:36.1]} 42. Kf5 {[%clk 0:01:55.1]} 42... b5 {[%clk
0:00:18.6]} 43. Rxc6 {[%clk 0:01:54.3]} 43... b4 {[%clk 0:00:19.3]} 44. Rc5
{[%clk 0:01:40.4]} 44... bxc3 {[%clk 0:00:19.4]} 45. bxc3 {[%clk 0:01:41.3]}
45... Rb2 {[%clk 0:00:19.6]} 46. Rxd5 {[%clk 0:01:41.6]} 46... Rxa2 {[%clk
0:00:20.1]} 47. Rd8+ {[%clk 0:01:41.4]} 47... Kh7 {[%clk 0:00:20.1]} 48. Ra8
{[%clk 0:01:42.3]} 48... Rf2+ {[%clk 0:00:18.8]} 49. Ke5 {[%clk 0:01:42.4]}
49... Kg6 {[%clk 0:00:19.2]} 50. Rxa4 {[%clk 0:01:36.8]} 50... Rxf6 {[%clk
0:00:19.1]} 51. d5 {[%clk 0:01:35.5]} 51... Rf5+ {[%clk 0:00:18.6]} 52. Kd6
{[%clk 0:01:35.8]} 52... Rf1 {[%clk 0:00:18.7]} 53. c4 {[%clk 0:01:35.2]} 53...
f5 {[%clk 0:00:19.2]} 54. c5 {[%clk 0:01:35.6]} 54... f4 {[%clk 0:00:19.8]} 55.
c6 {[%clk 0:01:35.6]} 55... f3 {[%clk 0:00:20.1]} 56. c7 {[%clk 0:01:35.9]}
56... Rc1 {[%clk 0:00:17.7]} 57. Rf4 {[%clk 0:01:35.5]} 1-0